{"text_format":"1","workbook":"xlsx","n_sheets":4,"sheets":["Вопросы","Результаты","Настройки","Инструкции"],"not_rendered":{"charts":1,"images":2,"macros":1,"external_links":0,"defined_names":1,"comments":0,"pivot_tables":0},"unopened":[],"bounds":{"document_bytes":16777216,"sheet_cells":100000,"rows_first":2000,"rows_last":500,"rows_between":2000,"halvings":0,"cell_chars":16384,"cell_head_chars":4096},"cells_cut":0,"cells_raw":0,"read":"whole","date_system":"1900"}

{"sheet":"Вопросы","index":0,"n_rows":19,"n_cols":13,"rows_kept":19,"cut":false,"hidden":false,"merged":[[0,0,0,1],[3,1,3,2]]}
["Тестирование"]
[]
[]
[null,"Выберете один из предложенных ответов из раскрывающегося списка в поле \"Ответ\""]
[]
["№","Вопрос","Ответ"]
[1,{"$f":"H7","v":"Продолжите предложение: \"MS Word - это…..\""},null,null,null,null,{"$f":"IF(C7=M7,1,0)","v":0},{"$f":"Настройки!B1","v":"Продолжите предложение: \"MS Word - это…..\""},{"$f":"Настройки!C2","v":"Графический редактор"},{"$f":"Настройки!C3","v":"Текстовый редактор"},{"$f":"Настройки!C4","v":"Системная программа "},{"$f":"Настройки!C5","v":"Программа для расчетов"},{"$f":"Настройки!D3","v":"Текстовый редактор"}]
[2,{"$f":"H8","v":"Продолжите предложение: \"Буфер обмена - это…\""},null,null,null,null,{"$f":"IF(C8=M8,1,0)","v":0},{"$f":"Настройки!B6","v":"Продолжите предложение: \"Буфер обмена - это…\""},{"$f":"Настройки!C7","v":"специальная область на жестком диске"},{"$f":"Настройки!C8","v":"специальная область в папке \"Мои документы\""},{"$f":"Настройки!C9","v":"специальная область оперативной памяти"},{"$f":"Настройки!C10","v":"специальная область внешней памяти"},{"$f":"Настройки!D8","v":"специальная область оперативной памяти"}]
[3,"Что является главным элементом интерфейса MS Word 2007?",null,null,null,null,0,{"$f":"Настройки!B11","v":"Что является главным элементом интерфейса MS Word 2007?"},{"$f":"Настройки!C12","v":"диалоговое окно"},{"$f":"Настройки!C13","v":"группа"},{"$f":"Настройки!C14","v":"кнопка"},{"$f":"Настройки!C15","v":"лента"},{"$f":"Настройки!D13","v":"лента"}]
[4,"Где располагается кнопка \"Office\"?",null,null,null,null,0,{"$f":"Настройки!B16","v":"Где располагается кнопка \"Office\"?"},{"$f":"Настройки!C17","v":"на панели Быстрого доступа"},{"$f":"Настройки!C18","v":"на вкладке Главная"},{"$f":"Настройки!C19","v":"в левом верхнем углу окна"},{"$f":"Настройки!C20","v":"в группе Буфер обмена"},{"$f":"Настройки!D18","v":"в левом верхнем углу окна"}]
[5,"Сколько групп имеет вкладка Главная?",null,null,null,null,0,{"$f":"Настройки!B21","v":"Сколько групп имеет вкладка Главная?"},{"$f":"Настройки!C22","v":"четыре"},{"$f":"Настройки!C23","v":"пять"},{"$f":"Настройки!C24","v":"шесть"},{"$f":"Настройки!C25","v":"семь"},{"$f":"Настройки!D23","v":"пять"}]
[6,{"$f":"H12","v":"На какой вкладке располагается команда Границы страниц?"},null,null,null,null,0,{"$f":"Настройки!B26","v":"На какой вкладке располагается команда Границы страниц?"},{"$f":"Настройки!C27","v":"Главная"},{"$f":"Настройки!C28","v":"Вставка"},{"$f":"Настройки!C29","v":"Разметка страниц"},{"$f":"Настройки!C30","v":"Вид"},{"$f":"Настройки!D28","v":"Разметка страниц"}]
[7,"Можно ли свернуть ленту для увеличения рабочей области?",null,null,null,null,0,{"$f":"Настройки!B31","v":"Можно ли свернуть ленту для увеличения рабочей области?"},{"$f":"Настройки!C32","v":"такой возможности нет"},{"$f":"Настройки!C33","v":"можно только удалить"},{"$f":"Настройки!C34","v":"можно"},{"$f":"Настройки!C35","v":"нельзя"},{"$f":"Настройки!D33","v":"можно"}]
[8,"На какой вкладке находится команда Номер страницы?",null,null,null,null,0,{"$f":"Настройки!B36","v":"На какой вкладке находится команда Номер страницы?"},{"$f":"Настройки!C37","v":"Главная"},{"$f":"Настройки!C38","v":"Вставка"},{"$f":"Настройки!C39","v":"Разметка страниц"},{"$f":"Настройки!C40","v":"Вид"},{"$f":"Настройки!D38","v":"Вставка"}]
[9,{"$f":"H15","v":"Для чего предназначены Счетчики ?"},null,null,null,null,0,{"$f":"Настройки!B41","v":"Для чего предназначены Счетчики ?"},{"$f":"Настройки!C42","v":"…для выбора цвета"},{"$f":"Настройки!C43","v":"…для выбора текстовых значений"},{"$f":"Настройки!C44","v":"…для установки текстовых значений"},{"$f":"Настройки!C45","v":"…для установки числовых значений"},{"$f":"Настройки!D43","v":"…для установки числовых значений"}]
[10,{"$f":"H16","v":"Сколько одновременно может находиться объектов в Буфере обмена?"},null,null,null,null,0,{"$f":"Настройки!B46","v":"Сколько одновременно может находиться объектов в Буфере обмена?"},{"$f":"Настройки!C47","v":"12 объектов"},{"$f":"Настройки!C48","v":"18 объектов"},{"$f":"Настройки!C49","v":"24 объекта"},{"$f":"Настройки!C50","v":"28 объектов"},{"$f":"Настройки!D48","v":"24 объекта"}]
[null,null,null,null,null,null,{"$f":"SUM(G7:G16)","v":0},{"$f":"10-G17","v":10}]
[]
[null,"Ваша оценка",{"$f":"Результаты!D17","v":""}]

{"sheet":"Результаты","index":1,"n_rows":17,"n_cols":5,"rows_kept":17,"cut":false,"hidden":true,"merged":[[2,0,2,1],[3,0,3,1],[0,0,0,1],[1,0,1,1]]}
["Результаты теста"]
[{"$f":"Вопросы!C3&\" группа № \"&Вопросы!#REF!","v":{"$error":"#REF!"}},null,{"$f":"COUNTIF(Вопросы!C7:C16,\"\")","v":10}]
[{"$f":"\"Правильные ответы: \"&D3","v":"Правильные ответы: 0"},null,"Правильно",{"$f":"IF(C2<>0,0,Вопросы!G17)","v":0}]
[{"$f":"\"Допущенные ошибки: \"&D4","v":"Допущенные ошибки: 0"},null,"Ошибочно",{"$f":"IF(C2<>0,0,Вопросы!H17)","v":0}]
["№","Вопрос","Ваш \nответ","Правильный \nответ"]
[1,{"$f":"Вопросы!B7","v":"Продолжите предложение: \"MS Word - это…..\""},{"$f":"IF(C2<>0,\" \",Вопросы!C7)","v":" "},{"$f":"IF(C2<>0,\"\",IF(Вопросы!G7<>1,Настройки!D3,\"\"))","v":""},{"$f":"Вопросы!M7","v":"Текстовый редактор"}]
[2,{"$f":"Вопросы!B8","v":"Продолжите предложение: \"Буфер обмена - это…\""},{"$f":"IF(C2<>0,\" \",Вопросы!C8)","v":" "},{"$f":"IF(C2<>0,\"\",IF(Вопросы!G8<>1,Настройки!D8,\"\"))","v":""},{"$f":"Вопросы!M8","v":"специальная область оперативной памяти"}]
[3,{"$f":"Вопросы!B9","v":"Что является главным элементом интерфейса MS Word 2007?"},{"$f":"IF(C2<>0,\" \",Вопросы!C9)","v":" "},{"$f":"IF(C2<>0,\"\",IF(Вопросы!G9<>1,Настройки!D13,\"\"))","v":""},{"$f":"Вопросы!M9","v":"лента"}]
[4,{"$f":"Вопросы!B10","v":"Где располагается кнопка \"Office\"?"},{"$f":"IF(C2<>0,\" \",Вопросы!C10)","v":" "},{"$f":"IF(C2<>0,\"\",IF(Вопросы!G10<>1,Настройки!D18,\"\"))","v":""},{"$f":"Вопросы!M10","v":"в левом верхнем углу окна"}]
[5,{"$f":"Вопросы!B11","v":"Сколько групп имеет вкладка Главная?"},{"$f":"IF(C2<>0,\" \",Вопросы!C11)","v":" "},{"$f":"IF(C2<>0,\"\",IF(Вопросы!G11<>1,Настройки!D23,\"\"))","v":""},{"$f":"Вопросы!M11","v":"пять"}]
[7,{"$f":"Вопросы!B12","v":"На какой вкладке располагается команда Границы страниц?"},{"$f":"IF(C2<>0,\" \",Вопросы!C12)","v":" "},{"$f":"IF(C2<>0,\"\",IF(Вопросы!G12<>1,Настройки!D28,\"\"))","v":""},{"$f":"Вопросы!M12","v":"Разметка страниц"}]
[8,{"$f":"Вопросы!B13","v":"Можно ли свернуть ленту для увеличения рабочей области?"},{"$f":"IF(C2<>0,\" \",Вопросы!C13)","v":" "},{"$f":"IF(C2<>0,\"\",IF(Вопросы!G13<>1,Настройки!D33,\"\"))","v":""},{"$f":"Вопросы!M13","v":"можно"}]
[9,{"$f":"Вопросы!B14","v":"На какой вкладке находится команда Номер страницы?"},{"$f":"IF(C2<>0,\" \",Вопросы!C14)","v":" "},{"$f":"IF(C2<>0,\"\",IF(Вопросы!G14<>1,Настройки!D38,\"\"))","v":""},{"$f":"Вопросы!M14","v":"Вставка"}]
[10,{"$f":"Вопросы!B15","v":"Для чего предназначены Счетчики ?"},{"$f":"IF(C2<>0,\" \",Вопросы!C15)","v":" "},{"$f":"IF(C2<>0,\"\",IF(Вопросы!G15<>1,Настройки!D43,\"\"))","v":""},{"$f":"Вопросы!M15","v":"…для установки числовых значений"}]
[11,{"$f":"Вопросы!B16","v":"Сколько одновременно может находиться объектов в Буфере обмена?"},{"$f":"IF(C2<>0,\" \",Вопросы!C16)","v":" "},{"$f":"IF(C2<>0,\"\",IF(Вопросы!G16<>1,Настройки!D48,\"\"))","v":""}]
[null,{"$f":"IF(C2<>0,\"Вы ответили не на все вопросы!!! Осталось \"&C2&\" из 10\",\"\")","v":"Вы ответили не на все вопросы!!! Осталось 10 из 10"}]
[null,null,null,{"$f":"IF(C2<>0,\"\",IF(D3>=9,5,IF(D3>=7,4,IF(D3>=5,3,2))))","v":""}]

{"sheet":"Настройки","index":2,"n_rows":50,"n_cols":4,"rows_kept":50,"cut":false,"hidden":true,"merged":[]}
[1,"Продолжите предложение: \"MS Word - это…..\""]
[null,null,"Графический редактор",{"$f":"MATCH(1,B2:B5,0)","v":2}]
[null,1,"Текстовый редактор",{"$f":"INDEX(C2:C5,D2)","v":"Текстовый редактор"}]
[null,null,"Системная программа "]
[null,null,"Программа для расчетов"]
[2,"Продолжите предложение: \"Буфер обмена - это…\""]
[null,null,"специальная область на жестком диске",{"$f":"MATCH(1,B7:B10,0)","v":3}]
[null,null,"специальная область в папке \"Мои документы\"",{"$f":"INDEX(C7:C10,D7)","v":"специальная область оперативной памяти"}]
[null,1,"специальная область оперативной памяти"]
[null,null,"специальная область внешней памяти"]
[3,"Что является главным элементом интерфейса MS Word 2007?"]
[null,null,"диалоговое окно",{"$f":"MATCH(1,B12:B15,0)","v":4}]
[null,null,"группа",{"$f":"INDEX(C12:C15,D12)","v":"лента"}]
[null,null,"кнопка"]
[null,1,"лента"]
[4,"Где располагается кнопка \"Office\"?"]
[null,null,"на панели Быстрого доступа",{"$f":"MATCH(1,B17:B20,0)","v":3}]
[null,null,"на вкладке Главная",{"$f":"INDEX(C17:C20,D17)","v":"в левом верхнем углу окна"}]
[null,1,"в левом верхнем углу окна"]
[null,null,"в группе Буфер обмена"]
[5,"Сколько групп имеет вкладка Главная?"]
[null,null,"четыре",{"$f":"MATCH(1,B22:B25,0)","v":2}]
[null,1,"пять",{"$f":"INDEX(C22:C25,D22)","v":"пять"}]
[null,null,"шесть"]
[null,null,"семь"]
[6,"На какой вкладке располагается команда Границы страниц?"]
[null,null,"Главная",{"$f":"MATCH(1,B27:B30,0)","v":3}]
[null,null,"Вставка",{"$f":"INDEX(C27:C30,D27)","v":"Разметка страниц"}]
[null,1,"Разметка страниц"]
[null,null,"Вид"]
[7,"Можно ли свернуть ленту для увеличения рабочей области?"]
[null,null,"такой возможности нет",{"$f":"MATCH(1,B32:B35,0)","v":3}]
[null,null,"можно только удалить",{"$f":"INDEX(C32:C35,D32)","v":"можно"}]
[null,1,"можно"]
[null,null,"нельзя"]
[8,"На какой вкладке находится команда Номер страницы?"]
[null,null,"Главная",{"$f":"MATCH(1,B37:B40,0)","v":2}]
[null,1,"Вставка",{"$f":"INDEX(C37:C40,D37)","v":"Вставка"}]
[null,null,"Разметка страниц"]
[null,null,"Вид"]
[9,"Для чего предназначены Счетчики ?"]
[null,null,"…для выбора цвета",{"$f":"MATCH(1,B42:B45,0)","v":4}]
[null,null,"…для выбора текстовых значений",{"$f":"INDEX(C42:C45,D42)","v":"…для установки числовых значений"}]
[null,null,"…для установки текстовых значений"]
[null,1,"…для установки числовых значений"]
[10,"Сколько одновременно может находиться объектов в Буфере обмена?"]
[null,null,"12 объектов",{"$f":"MATCH(1,B47:B50,0)","v":3}]
[null,null,"18 объектов",{"$f":"INDEX(C47:C50,D47)","v":"24 объекта"}]
[null,1,"24 объекта"]
[null,null,"28 объектов"]

{"sheet":"Инструкции","index":3,"n_rows":15,"n_cols":2,"rows_kept":15,"cut":false,"hidden":true,"merged":[[9,0,9,6],[0,0,0,6],[2,1,2,6],[3,1,3,6],[4,1,4,6],[5,1,5,6],[6,1,6,6],[7,1,7,6]]}
["Порядок работы:"]
[]
[]
[1,"Ввод ответов на вопросы теста осуществляется путем выбора правильного варианта из списка "]
[2,"До тех пор, пока не введены все ответы результаты теста просмотреть не возможно"]
[3,"На листе \"Результаты\" помещается информация о количестве правильных и ошибочных ответов как в текстовой, так и в графической форме"]
[4,"В приведенном списке вопросов отмечаются красным цветом ошибочные ответы, а рядом помещаются правильные варианты."]
[5,"На основании подсчета правильных ответов выставляется оценка."]
[]
["Формирование списка вопросов"]
[null,"Количество вопросов: 10."]
[null,"Количество вариантов ответов: до 4."]
[null,"Содержание вопросов не является фиксированным."]
[null,"Изменение списка вопросов осуществляется на листе \"Настройки\""]
[null,"Цифра \"1\" в столбце \"В\" указывает на правильный ответ."]